[Event "NJSK 2026 Jeugd C"]
[Site "Helmond, Netherlands"]
[Date "2026.04.25"]
[Round "1.10"]
[White "Blok, Lukas"]
[Black "Okita, Ryoga"]
[Result "1-0"]
[TimeControl "90min/40moves + 30sec/move"]
[WhiteTitle "-"]
[BlackTitle "-"]
[WhiteFideId "40110494"]
[BlackFideId "1090666"]
[WhiteElo "1991"]
[BlackElo "1812"]

1. c4 {[%clk 01:30:49]} {[%emt 00:00:10]} d6 {[%clk 01:30:10]} {[%emt
00:00:51]} 2. Nc3 {[%clk 01:31:13]} {[%emt 00:00:06]} Nf6 {[%clk 01:30:33]}
{[%emt 00:00:09]} 3. g3 {[%clk 01:31:20]} {[%emt 00:00:20]} g6 {[%clk
01:30:50]} {[%emt 00:00:13]} 4. Bg2 {[%clk 01:31:47]} {[%emt 00:00:03]} Bg7
{[%clk 01:31:10]} {[%emt 00:00:10]} 5. e4 {[%clk 01:32:13]} {[%emt 00:00:04]}
Nc6 {[%clk 01:31:15]} {[%emt 00:00:26]} 6. Nge2 {[%clk 01:31:43]} {[%emt
00:00:59]} O-O {[%clk 01:31:22]} {[%emt 00:00:24]} 7. O-O {[%clk 01:31:35]}
{[%emt 00:00:38]} e5 {[%clk 01:29:51]} {[%emt 00:02:00]} 8. d3 {[%clk
01:31:58]} {[%emt 00:00:07]} Be6 {[%clk 01:27:35]} {[%emt 00:02:47]} 9. h3
{[%clk 01:21:50]} {[%emt 00:10:36]} Nd7 {[%clk 01:24:35]} {[%emt 00:03:31]} 10.
Rb1 {[%clk 01:14:44]} {[%emt 00:07:36]} a5 {[%clk 01:22:21]} {[%emt 00:02:44]}
11. a3 {[%clk 01:14:13]} {[%emt 00:01:01]} Qc8 {[%clk 01:13:32]} {[%emt
00:09:18]} 12. Kh2 {[%clk 01:12:46]} {[%emt 00:01:58]} b6 {[%clk 01:11:48]}
{[%emt 00:02:14]} 13. f4 {[%clk 01:09:43]} {[%emt 00:03:33]} f6 {[%clk
01:10:17]} {[%emt 00:02:01]} 14. Be3 {[%clk 01:06:57]} {[%emt 00:03:15]} Kh8
{[%clk 01:05:32]} {[%emt 00:05:16]} 15. b3 {[%clk 01:04:37]} {[%emt 00:02:50]}
Ne7 {[%clk 00:56:40]} {[%emt 00:09:22]} 16. d4 {[%clk 00:56:31]} {[%emt
00:08:37]} Rb8 {[%clk 00:54:50]} {[%emt 00:02:18]} 17. Nb5 {[%clk 00:52:59]}
{[%emt 00:04:03]} f5 {[%clk 00:52:09]} {[%emt 00:03:10]} 18. fxe5 {[%clk
00:50:11]} {[%emt 00:03:18]} dxe5 {[%clk 00:49:45]} {[%emt 00:02:55]} 19. d5
{[%clk 00:50:20]} {[%emt 00:00:21]} Bg8 {[%clk 00:49:35]} {[%emt 00:00:39]} 20.
Nec3 {[%clk 00:34:24]} {[%emt 00:16:28]} fxe4 {[%clk 00:48:01]} {[%emt
00:02:03]} 21. g4 {[%clk 00:32:45]} {[%emt 00:02:08]} Nf6 {[%clk 00:45:56]}
{[%emt 00:02:35]} 22. Nxe4 {[%clk 00:31:35]} {[%emt 00:01:40]} Nxe4 {[%clk
00:44:41]} {[%emt 00:01:46]} 23. Bxe4 {[%clk 00:32:03]} {[%emt 00:00:02]} Rxf1
{[%clk 00:44:40]} {[%emt 00:00:31]} 24. Qxf1 {[%clk 00:32:24]} {[%emt
00:00:09]} Qd7 {[%clk 00:44:55]} {[%emt 00:00:14]} 25. Rd1 {[%clk 00:30:42]}
{[%emt 00:02:12]} Nc8 {[%clk 00:44:25]} {[%emt 00:01:01]} 26. b4 {[%clk
00:24:12]} {[%emt 00:07:00]} axb4 {[%clk 00:41:54]} {[%emt 00:03:01]} 27. axb4
{[%clk 00:24:35]} {[%emt 00:00:06]} Nd6 {[%clk 00:38:01]} {[%emt 00:04:24]} 28.
Nxd6 {[%clk 00:23:16]} {[%emt 00:01:49]} cxd6 {[%clk 00:37:48]} {[%emt
00:00:42]} 29. Ra1 {[%clk 00:21:33]} {[%emt 00:02:14]} Rb7 {[%clk 00:24:15]}
{[%emt 00:14:03]} 30. Ra6 {[%clk 00:20:04]} {[%emt 00:01:59]} Qc7 {[%clk
00:22:40]} {[%emt 00:02:04]} 31. Bd3 {[%clk 00:15:51]} {[%emt 00:04:44]} b5
{[%clk 00:20:26]} {[%emt 00:02:44]} 32. Rc6 {[%clk 00:14:01]} {[%emt 00:02:20]}
Qd7 {[%clk 00:20:19]} {[%emt 00:00:37]} 33. c5 {[%clk 00:10:43]} {[%emt
00:03:47]} dxc5 {[%clk 00:17:23]} {[%emt 00:03:26]} 34. Rxc5 {[%clk 00:07:53]}
{[%emt 00:03:20]} Qd8 {[%clk 00:09:40]} {[%emt 00:08:13]} 35. Be4 {[%clk
00:07:42]} {[%emt 00:00:41]} Qd7 {[%clk 00:08:47]} {[%emt 00:01:19]} 36. Qd3
{[%clk 00:07:39]} {[%emt 00:00:36]} Rb8 {[%clk 00:08:20]} {[%emt 00:00:57]} 37.
Qc3 {[%clk 00:05:30]} {[%emt 00:02:40]} Rd8 {[%clk 00:06:56]} {[%emt 00:01:53]}
38. Rc7 {[%clk 00:05:43]} {[%emt 00:00:19]} Qd6 {[%clk 00:07:09]} {[%emt
00:00:16]} 39. Rc6 {[%clk 00:05:51]} {[%emt 00:00:23]} Qf8 {[%clk 00:07:21]}
{[%emt 00:00:17]} 40. Qc5 {[%clk 00:03:41]} {[%emt 00:02:41]} Qf1 {[%clk
00:06:43]} {[%emt 00:01:06]} 41. d6 {[%clk 00:03:37]} {[%emt 00:00:36]} Qc4
{[%clk 00:03:25]} {[%emt 00:03:48]} 42. Qxc4 {[%clk 00:03:42]} {[%emt
00:00:25]} Bxc4 {[%clk 00:03:44]} {[%emt 00:00:10]} 43. Bg5 {[%clk 00:03:52]}
{[%emt 00:00:20]} Rd7 {[%clk 00:01:57]} {[%emt 00:02:17]} 44. Rc8+ {[%clk
00:03:25]} {[%emt 00:00:57]} 1-0

[Event "NJSK 2026 Jeugd C"]
[Site "Helmond, Netherlands"]
[Date "2026.04.25"]
[Round "1.11"]
[White "Fu, Ziqing"]
[Black "Omnes, Tiago"]
[Result "0-1"]
[TimeControl "90min/40moves + 30sec/move"]
[WhiteTitle "-"]
[BlackTitle "-"]
[WhiteFideId "40109623"]
[BlackFideId "1091867"]
[WhiteElo "1810"]
[BlackElo "1990"]

1. e4 {[%clk 01:30:18]} {[%emt 00:00:42]} e5 {[%clk 01:30:56]} {[%emt
00:00:04]} 2. Nf3 {[%clk 01:29:56]} {[%emt 00:00:52]} Nc6 {[%clk 01:31:25]}
{[%emt 00:00:01]} 3. Nc3 {[%clk 01:28:59]} {[%emt 00:01:24]} Nf6 {[%clk
01:31:52]} {[%emt 00:00:06]} 4. d4 {[%clk 01:27:58]} {[%emt 00:01:32]} exd4
{[%clk 01:32:15]} {[%emt 00:00:06]} 5. Nxd4 {[%clk 01:27:36]} {[%emt 00:00:52]}
Bb4 {[%clk 01:32:16]} {[%emt 00:00:30]} 6. Nxc6 {[%clk 01:26:57]} {[%emt
00:01:09]} bxc6 {[%clk 01:32:44]} {[%emt 00:00:03]} 7. Bd3 {[%clk 01:26:42]}
{[%emt 00:00:44]} d5 {[%clk 01:32:26]} {[%emt 00:00:48]} 8. exd5 {[%clk
01:25:57]} {[%emt 00:01:14]} cxd5 {[%clk 01:27:30]} {[%emt 00:05:27]} 9. O-O
{[%clk 01:24:50]} {[%emt 00:01:34]} O-O {[%clk 01:27:57]} {[%emt 00:00:06]} 10.
Bg5 {[%clk 01:23:14]} {[%emt 00:02:04]} Be6 {[%clk 01:27:40]} {[%emt 00:00:48]}
11. Qf3 {[%clk 01:21:26]} {[%emt 00:02:19]} Be7 {[%clk 01:27:27]} {[%emt
00:00:43]} 12. h3 {[%clk 01:21:23]} {[%emt 00:00:32]} Qd7 {[%clk 01:26:11]}
{[%emt 00:01:46]} 13. Ne2 {[%clk 01:20:48]} {[%emt 00:01:06]} h6 {[%clk
01:24:49]} {[%emt 00:01:51]} 14. Be3 {[%clk 01:20:39]} {[%emt 00:00:39]} c5
{[%clk 01:23:07]} {[%emt 00:02:12]} 15. Nf4 {[%clk 01:20:25]} {[%emt 00:00:44]}
c4 {[%clk 01:21:06]} {[%emt 00:02:32]} 16. Be2 {[%clk 01:20:41]} {[%emt
00:00:13]} Rad8 {[%clk 01:04:20]} {[%emt 00:17:16]} 17. Bd4 {[%clk 01:19:51]}
{[%emt 00:01:21]} Bf5 {[%clk 00:58:14]} {[%emt 00:06:35]} 18. c3 {[%clk
01:19:19]} {[%emt 00:01:02]} Kh7 {[%clk 00:57:01]} {[%emt 00:01:43]} 19. Rfd1
{[%clk 01:18:59]} {[%emt 00:00:51]} Be4 {[%clk 00:43:27]} {[%emt 00:14:04]} 20.
Qe3 {[%clk 01:19:00]} {[%emt 00:00:29]} g5 {[%clk 00:33:55]} {[%emt 00:10:02]}
21. Bxf6 {[%clk 01:18:41]} {[%emt 00:00:48]} Bxf6 {[%clk 00:22:54]} {[%emt
00:11:32]} 22. Nh5 {[%clk 01:18:12]} {[%emt 00:00:58]} Qc6 {[%clk 00:21:14]}
{[%emt 00:02:10]} 23. Nxf6+ {[%clk 01:18:04]} {[%emt 00:00:38]} Qxf6 {[%clk
00:21:42]} {[%emt 00:00:03]} 24. Bxc4 {[%clk 01:17:38]} {[%emt 00:00:55]} Rde8
{[%clk 00:19:43]} {[%emt 00:02:29]} 25. Bd3 {[%clk 01:16:16]} {[%emt 00:01:54]}
Bg6 {[%clk 00:16:58]} {[%emt 00:03:29]} 26. Bxg6+ {[%clk 01:16:09]} {[%emt
00:00:22]} fxg6 {[%clk 00:17:18]} {[%emt 00:00:10]} 27. Qxa7+ {[%clk 01:16:01]}
{[%emt 00:00:39]} Re7 {[%clk 00:17:17]} {[%emt 00:00:30]} 28. Qd4 {[%clk
01:16:16]} {[%emt 00:00:15]} Qf7 {[%clk 00:17:24]} {[%emt 00:00:24]} 29. Re1
{[%clk 01:16:22]} {[%emt 00:00:24]} Rb7 {[%clk 00:14:55]} {[%emt 00:02:59]} 30.
b3 {[%clk 01:16:28]} {[%emt 00:00:24]} h5 {[%clk 00:14:18]} {[%emt 00:01:07]}
31. Re2 {[%clk 01:16:39]} {[%emt 00:00:19]} Rc7 {[%clk 00:13:40]} {[%emt
00:01:08]} 32. Rae1 {[%clk 01:16:36]} {[%emt 00:00:33]} Kh6 {[%clk 00:12:49]}
{[%emt 00:01:21]} 33. f3 {[%clk 01:15:01]} {[%emt 00:02:05]} Rfc8 {[%clk
00:10:36]} {[%emt 00:02:43]} 34. Rc2 {[%clk 01:14:05]} {[%emt 00:01:25]} Qf5
{[%clk 00:07:25]} {[%emt 00:03:42]} 35. Rec1 {[%clk 01:11:38]} {[%emt
00:02:57]} Re8 {[%clk 00:02:23]} {[%emt 00:05:51]} 36. c4 {[%clk 01:11:31]}
{[%emt 00:00:36]} dxc4 {[%clk 00:02:37]} {[%emt 00:00:17]} 37. Rxc4 {[%clk
01:11:41]} {[%emt 00:00:19]} Rce7 {[%clk 00:02:54]} {[%emt 00:00:13]} 38. R4c2
{[%clk 01:11:52]} {[%emt 00:00:19]} Rd7 {[%clk 00:02:39]} {[%emt 00:00:45]} 39.
Qf2 {[%clk 01:12:00]} {[%emt 00:00:22]} Red8 {[%clk 00:02:10]} {[%emt
00:01:00]} 40. g4 {[%clk 01:10:46]} {[%emt 00:01:44]} Qf4 {[%clk 00:02:08]}
{[%emt 00:00:31]} 41. Re1 {[%clk 01:10:27]} {[%emt 00:00:48]} Rd3 {[%clk
00:01:50]} {[%emt 00:00:49]} 42. Kg2 {[%clk 01:10:35]} {[%emt 00:00:26]} h4
{[%clk 00:01:21]} {[%emt 00:00:55]} 43. Rce2 {[%clk 01:10:34]} {[%emt
00:00:30]} Rd2 {[%clk 00:01:31]} {[%emt 00:00:20]} 44. a4 {[%clk 01:09:53]}
{[%emt 00:01:12]} R2d3 {[%clk 00:01:44]} {[%emt 00:00:17]} 45. Re3 {[%clk
01:10:03]} {[%emt 00:00:19]} Qb4 {[%clk 00:01:18]} {[%emt 00:00:55]} 46. Rxd3
{[%clk 01:08:37]} {[%emt 00:01:57]} Rxd3 {[%clk 00:01:46]} {[%emt 00:00:02]} 47.
Re2 {[%clk 01:08:06]} {[%emt 00:01:01]} Rxb3 {[%clk 00:01:39]} {[%emt
00:00:37]} 48. Ra2 {[%clk 01:07:20]} {[%emt 00:01:17]} Rb1 {[%clk 00:00:51]}
{[%emt 00:01:17]} 49. a5 {[%clk 01:07:00]} {[%emt 00:00:50]} Qc4 {[%clk
00:01:02]} {[%emt 00:00:20]} 50. Rc2 {[%clk 01:05:55]} {[%emt 00:01:35]} Qa4
{[%clk 00:01:05]} {[%emt 00:00:26]} 51. Qc5 {[%clk 01:05:05]} {[%emt 00:01:19]}
Qf4 {[%clk 00:01:32]} {[%emt 00:00:04]} 52. Qf2 {[%clk 01:05:17]} {[%emt
00:00:18]} Ra1 {[%clk 00:01:27]} {[%emt 00:00:36]} 53. Rc8 {[%clk 01:04:45]}
{[%emt 00:01:02]} Rxa5 {[%clk 00:01:13]} {[%emt 00:00:44]} 54. Rh8+ {[%clk
01:02:53]} {[%emt 00:02:22]} Kg7 {[%clk 00:01:42]} {[%emt 00:00:01]} 55. Re8
{[%clk 01:02:40]} {[%emt 00:00:42]} Kf7 {[%clk 00:00:37]} {[%emt 00:01:37]} 56.
Re4 {[%clk 01:02:30]} {[%emt 00:00:40]} Qd6 {[%clk 00:00:44]} {[%emt 00:00:18]}
57. f4 {[%clk 01:02:29]} {[%emt 00:00:36]} Qd5 {[%clk 00:00:48]} {[%emt
00:00:26]} 58. fxg5+ {[%clk 01:02:29]} {[%emt 00:00:29]} Kg8 {[%clk 00:00:53]}
{[%emt 00:00:25]} 59. Qe2 {[%clk 01:02:17]} {[%emt 00:00:40]} Ra2 {[%clk
00:01:14]} {[%emt 00:00:11]} 60. Qxa2 {[%clk 01:02:10]} {[%emt 00:00:37]} Qxa2+
{[%clk 00:01:43]} {[%emt 00:00:03]} 61. Kf3 {[%clk 01:02:30]} {[%emt 00:00:07]}
Qh2 {[%emt 00:00:22]} 62. Re8+ {[%clk 01:02:50]} Kf7 {[%clk 00:02:29]} {[%emt
00:00:02]} 63. Re3 {[%clk 01:02:55]} {[%emt 00:00:25]} Qxh3+ {[%clk 00:02:54]}
{[%emt 00:00:06]} 64. Kf4 {[%clk 01:03:21]} {[%emt 00:00:03]} Qh2+ {[%clk
00:03:14]} {[%emt 00:00:11]} 65. Kf3 {[%clk 01:03:41]} {[%emt 00:00:10]} Qg3+
{[%clk 00:03:39]} {[%emt 00:00:04]} 66. Ke2 {[%clk 01:03:49]} {[%emt 00:00:21]}
Qxg4+ {[%clk 00:04:06]} {[%emt 00:00:04]} 67. Rf3+ {[%clk 01:04:07]} {[%emt
00:00:12]} Kg7 {[%clk 00:04:35]} {[%emt 00:00:02]} 68. Kf2 {[%clk 01:04:19]}
{[%emt 00:00:17]} Qxg5 {[%clk 00:04:55]} {[%emt 00:00:11]} 69. Rb3 {[%clk
01:04:05]} {[%emt 00:00:41]} Qg4 {[%clk 00:05:09]} {[%emt 00:00:19]} 70. Rb7+
{[%clk 01:04:26]} {[%emt 00:00:08]} Kh6 {[%clk 00:05:39]} 71. Rb3 {[%clk
01:04:28]} {[%emt 00:00:29]} h3 {[%clk 00:06:03]} {[%emt 00:00:06]} 72. Rg3
{[%clk 01:04:36]} {[%emt 00:00:21]} Qf4+ {[%clk 00:06:22]} {[%emt 00:00:11]} 73.
Rf3 {[%clk 01:04:58]} {[%emt 00:00:08]} Qd2+ {[%clk 00:06:47]} {[%emt
00:00:06]} 74. Kg3 {[%clk 01:05:01]} {[%emt 00:00:26]} Qg2+ {[%clk 00:06:55]}
{[%emt 00:00:21]} 75. Kf4 {[%clk 01:05:20]} {[%emt 00:00:11]} h2 {[%clk
00:07:21]} {[%emt 00:00:05]} 76. Re3 {[%clk 01:05:27]} {[%emt 00:00:23]} Qg5+
{[%clk 00:07:23]} {[%emt 00:01:53]} 77. Ke4 {[%clk 01:05:40]} {[%emt 00:00:18]}
h1=Q+ {[%clk 00:07:43]} {[%emt 00:00:10]} 78. Kd3 {[%clk 01:06:03]} {[%emt
00:00:07]} Qd1+ {[%clk 00:07:48]} {[%emt 00:00:25]} 79. Kc4 {[%clk 01:06:20]}
{[%emt 00:00:12]} Qgd5+ {[%clk 00:08:11]} {[%emt 00:00:08]} 80. Kb4 {[%clk
01:06:44]} {[%emt 00:00:07]} Qb1+ {[%clk 00:08:13]} {[%emt 00:00:26]} 81. Kc3
{[%clk 01:07:07]} {[%emt 00:00:08]} Qbb3# {[%clk 00:08:39]} {[%emt 00:00:05]}
0-1

[Event "NJSK 2026 Jeugd C"]
[Site "Helmond, Netherlands"]
[Date "2026.04.25"]
[Round "1.12"]
[White "Botter, Simon"]
[Black "Mendelsohn, Saffran"]
[Result "1-0"]
[TimeControl "90min/40moves + 30sec/move"]
[WhiteTitle "-"]
[BlackTitle "-"]
[WhiteFideId "40107698"]
[BlackFideId "40108996"]
[WhiteElo "1988"]
[BlackElo "1767"]

1. Nf3 {[%clk 01:30:57]} {[%emt 00:00:03]} c5 {[%clk 01:30:52]} {[%emt
00:00:08]} 2. c4 {[%clk 01:31:17]} {[%emt 00:00:11]} Nc6 {[%clk 01:31:07]}
{[%emt 00:00:14]} 3. d4 {[%clk 01:31:18]} {[%emt 00:00:29]} cxd4 {[%clk
01:31:13]} {[%emt 00:00:23]} 4. Nxd4 {[%clk 01:31:21]} {[%emt 00:00:28]} g6
{[%clk 01:30:56]} {[%emt 00:00:46]} 5. e4 {[%clk 01:31:14]} {[%emt 00:00:37]}
Bg7 {[%clk 01:30:44]} {[%emt 00:00:42]} 6. Be3 {[%clk 01:30:57]} {[%emt
00:00:48]} d6 {[%clk 01:29:29]} {[%emt 00:01:44]} 7. Nc3 {[%clk 01:31:13]}
{[%emt 00:00:14]} a6 {[%clk 01:28:41]} {[%emt 00:01:19]} 8. Be2 {[%clk
01:31:13]} {[%emt 00:00:30]} Nf6 {[%clk 01:28:29]} {[%emt 00:00:42]} 9. O-O
{[%clk 01:30:24]} {[%emt 00:01:19]} O-O {[%clk 01:28:11]} {[%emt 00:00:48]} 10.
Qd2 {[%clk 01:30:14]} {[%emt 00:00:40]} Bd7 {[%clk 01:27:41]} {[%emt 00:01:00]}
11. f3 {[%clk 01:28:07]} {[%emt 00:02:37]} Qc7 {[%clk 01:24:55]} {[%emt
00:03:16]} 12. Rfc1 {[%clk 01:20:27]} {[%emt 00:08:11]} Rfd8 {[%clk 01:17:47]}
{[%emt 00:07:37]} 13. Nd5 {[%clk 01:13:47]} {[%emt 00:07:10]} Qb8 {[%clk
01:09:11]} {[%emt 00:09:06]} 14. Nb6 {[%clk 01:13:53]} {[%emt 00:00:24]} Ra7
{[%clk 01:04:03]} {[%emt 00:05:38]} 15. Nxd7 {[%clk 01:10:45]} {[%emt
00:03:38]} Nxd7 {[%clk 01:03:25]} {[%emt 00:01:08]} 16. Nxc6 {[%clk 01:10:59]}
{[%emt 00:00:16]} bxc6 {[%clk 01:03:36]} {[%emt 00:00:18]} 17. Bxa7 {[%clk
01:11:21]} {[%emt 00:00:08]} Qxa7+ {[%clk 01:03:54]} {[%emt 00:00:13]} 18. Kh1
{[%clk 01:10:56]} {[%emt 00:00:56]} c5 {[%clk 00:52:53]} {[%emt 00:11:30]} 19.
Rab1 {[%clk 01:06:03]} {[%emt 00:05:23]} a5 {[%clk 00:47:27]} {[%emt 00:05:56]}
20. a3 {[%clk 01:05:07]} {[%emt 00:01:26]} a4 {[%clk 00:45:38]} {[%emt
00:02:19]} 21. b4 {[%clk 01:03:45]} {[%emt 00:01:53]} Bd4 {[%clk 00:42:00]}
{[%emt 00:04:07]} 22. b5 {[%clk 01:01:16]} {[%emt 00:02:59]} Qb6 {[%clk
00:37:14]} {[%emt 00:05:16]} 23. f4 {[%clk 01:00:23]} {[%emt 00:01:23]} Kg7
{[%clk 00:35:32]} {[%emt 00:02:12]} 24. Bg4 {[%clk 00:58:44]} {[%emt 00:02:09]}
Nf6 {[%clk 00:34:51]} {[%emt 00:01:11]} 25. Bf3 {[%clk 00:58:27]} {[%emt
00:00:46]} Nd7 {[%clk 00:33:13]} {[%emt 00:02:08]} 26. Qe1 {[%clk 00:55:08]}
{[%emt 00:03:49]} e5 {[%clk 00:26:54]} {[%emt 00:06:51]} 27. f5 {[%clk
00:54:17]} {[%emt 00:01:21]} f6 {[%clk 00:24:37]} {[%emt 00:02:47]} 28. fxg6
{[%clk 00:51:05]} {[%emt 00:03:42]} hxg6 {[%clk 00:24:46]} {[%emt 00:00:20]} 29.
Bd1 {[%clk 00:49:27]} {[%emt 00:02:08]} Qa7 {[%clk 00:23:44]} {[%emt 00:01:32]}
30. b6 {[%clk 00:48:39]} {[%emt 00:01:18]} Nxb6 {[%clk 00:23:04]} {[%emt
00:01:10]} 31. Rb5 {[%clk 00:48:04]} {[%emt 00:01:04]} Rb8 {[%clk 00:16:28]}
{[%emt 00:07:07]} 32. Rcb1 {[%clk 00:46:41]} {[%emt 00:01:53]} Qa6 {[%clk
00:14:40]} {[%emt 00:02:18]} 33. Qa5 {[%clk 00:46:34]} {[%emt 00:00:37]} Qxa5
{[%clk 00:14:45]} {[%emt 00:00:25]} 34. Rxa5 {[%clk 00:46:58]} {[%emt
00:00:07]} Nd7 {[%clk 00:14:51]} {[%emt 00:00:23]} 35. Rxb8 {[%clk 00:46:57]}
{[%emt 00:00:31]} Nxb8 {[%clk 00:15:20]} {[%emt 00:00:01]} 36. Bxa4 {[%clk
00:47:05]} {[%emt 00:00:22]} f5 {[%clk 00:15:00]} {[%emt 00:00:50]} 37. Ra8
{[%clk 00:47:20]} {[%emt 00:00:15]} fxe4 {[%clk 00:14:38]} {[%emt 00:00:52]} 38.
Rxb8 {[%clk 00:47:43]} {[%emt 00:00:07]} e3 {[%clk 00:14:46]} {[%emt 00:00:23]}
39. Bd1 {[%clk 00:48:07]} {[%emt 00:00:05]} e4 {[%clk 00:14:47]} {[%emt
00:00:29]} 40. Be2 {[%clk 00:48:30]} {[%emt 00:00:07]} Be5 {[%clk 00:14:58]}
{[%emt 00:00:19]} 41. a4 {[%clk 00:48:53]} {[%emt 00:00:08]} Kh6 {[%clk
00:15:06]} {[%emt 00:00:22]} 42. Rd8 {[%clk 00:49:11]} {[%emt 00:00:11]} 1-0

[Event "NJSK 2026 Jeugd C"]
[Site "Helmond, Netherlands"]
[Date "2026.04.25"]
[Round "1.13"]
[White "De Wit, Jim"]
[Black "Lenting, Roan"]
[Result "0-1"]
[TimeControl "90min/40moves + 30sec/move"]
[WhiteTitle "-"]
[BlackTitle "-"]
[WhiteFideId "1097326"]
[BlackFideId "1085905"]
[WhiteElo "1749"]
[BlackElo "1986"]

1. d4 {[%clk 01:30:54]} {[%emt 00:00:05]} Nf6 {[%clk 01:30:49]} {[%emt
00:00:11]} 2. c4 {[%clk 01:31:10]} {[%emt 00:00:14]} e6 {[%clk 01:31:15]}
{[%emt 00:00:05]} 3. Nf3 {[%clk 01:31:11]} {[%emt 00:00:28]} d5 {[%clk
01:31:38]} {[%emt 00:00:09]} 4. g3 {[%clk 01:31:29]} {[%emt 00:00:10]} Bd6
{[%clk 01:31:52]} {[%emt 00:00:16]} 5. Bg2 {[%clk 01:31:26]} {[%emt 00:00:33]}
Nc6 {[%clk 01:32:14]} {[%emt 00:00:08]} 6. Nc3 {[%clk 01:30:20]} {[%emt
00:01:36]} O-O {[%clk 01:31:24]} {[%emt 00:01:20]} 7. O-O {[%clk 01:29:29]}
{[%emt 00:01:22]} dxc4 {[%clk 01:29:52]} {[%emt 00:02:02]} 8. e4 {[%clk
01:26:46]} {[%emt 00:03:12]} e5 {[%clk 01:28:41]} {[%emt 00:01:41]} 9. d5
{[%clk 01:26:37]} {[%emt 00:00:40]} Na5 {[%clk 01:27:09]} {[%emt 00:02:01]} 10.
Nd2 {[%clk 01:21:38]} {[%emt 00:05:29]} c6 {[%clk 01:23:43]} {[%emt 00:03:57]}
11. dxc6 {[%clk 01:17:45]} {[%emt 00:04:23]} bxc6 {[%clk 01:22:43]} {[%emt
00:01:30]} 12. Qe2 {[%clk 01:15:02]} {[%emt 00:03:13]} Qb6 {[%clk 01:17:15]}
{[%emt 00:05:58]} 13. Rd1 {[%clk 01:07:54]} {[%emt 00:07:38]} Ba6 {[%clk
01:13:15]} {[%emt 00:04:31]} 14. Nf3 {[%clk 01:03:22]} {[%emt 00:05:00]} Qc7
{[%clk 01:08:00]} {[%emt 00:05:45]} 15. Nh4 {[%clk 00:52:20]} {[%emt 00:11:32]}
g6 {[%clk 01:03:09]} {[%emt 00:05:21]} 16. Be3 {[%emt 00:15:37]} Rad8 {[%clk
00:56:45]} 17. h3 {[%clk 00:39:24]} {[%emt 00:05:14]} Bc8 {[%clk 00:52:16]}
{[%emt 00:04:58]} 18. Qc2 {[%clk 00:36:18]} {[%emt 00:03:36]} Be6 {[%clk
00:48:07]} {[%emt 00:04:41]} 19. Nf3 {[%clk 00:29:37]} {[%emt 00:07:10]} Be7
{[%clk 00:40:46]} {[%emt 00:07:51]} 20. Ng5 {[%clk 00:28:52]} {[%emt 00:01:16]}
Bc8 {[%clk 00:37:15]} {[%emt 00:04:01]} 21. Nf3 {[%clk 00:27:31]} {[%emt
00:01:50]} Rfe8 {[%clk 00:35:53]} {[%emt 00:01:52]} 22. Qa4 {[%clk 00:24:55]}
{[%emt 00:03:06]} Rxd1+ {[%clk 00:31:14]} {[%emt 00:05:09]} 23. Rxd1 {[%clk
00:24:34]} {[%emt 00:00:51]} Nd7 {[%clk 00:28:40]} {[%emt 00:03:04]} 24. Nd2
{[%clk 00:21:24]} {[%emt 00:03:39]} Nc5 {[%clk 00:21:58]} {[%emt 00:07:13]} 25.
Bxc5 {[%clk 00:18:36]} {[%emt 00:03:18]} Bxc5 {[%clk 00:22:23]} {[%emt
00:00:05]} 26. Nxc4 {[%clk 00:18:23]} {[%emt 00:00:43]} Nxc4 {[%clk 00:22:29]}
{[%emt 00:00:25]} 27. Qxc4 {[%clk 00:18:26]} {[%emt 00:00:27]} Qa5 {[%clk
00:20:41]} {[%emt 00:02:18]} 28. Na4 {[%clk 00:14:55]} {[%emt 00:04:05]} Bd4
{[%clk 00:15:52]} {[%emt 00:05:14]} 29. Qxc6 {[%clk 00:12:20]} {[%emt
00:03:04]} Rd8 {[%clk 00:15:38]} {[%emt 00:00:44]} 30. Qc2 {[%clk 00:12:29]}
{[%emt 00:00:22]} Be6 {[%clk 00:15:01]} {[%emt 00:01:07]} 31. b3 {[%clk
00:08:28]} {[%emt 00:04:30]} Rc8 {[%clk 00:12:56]} {[%emt 00:02:36]} 32. Qd2
{[%clk 00:08:26]} {[%emt 00:00:31]} Qxd2 {[%clk 00:13:03]} {[%emt 00:00:24]} 33.
Rxd2 {[%clk 00:08:42]} {[%emt 00:00:13]} Rc1+ {[%clk 00:13:25]} {[%emt
00:00:08]} 34. Kh2 {[%clk 00:08:51]} {[%emt 00:00:21]} Kg7 {[%clk 00:13:18]}
{[%emt 00:00:38]} 35. h4 {[%clk 00:08:35]} {[%emt 00:00:45]} Bc8 {[%clk
00:08:59]} {[%emt 00:04:50]} 36. Bf3 {[%clk 00:06:53]} {[%emt 00:02:11]} Bb7
{[%clk 00:08:32]} {[%emt 00:00:57]} 37. Kg2 {[%clk 00:04:57]} {[%emt 00:02:26]}
Ba6 {[%clk 00:04:37]} {[%emt 00:04:26]} 38. Be2 {[%clk 00:05:16]} {[%emt
00:00:11]} Bb7 {[%clk 00:04:57]} {[%emt 00:00:10]} 39. Bf3 {[%clk 00:05:40]}
{[%emt 00:00:05]} f5 {[%clk 00:04:24]} {[%emt 00:01:05]} 40. exf5 {[%clk
00:04:11]} {[%emt 00:01:57]} Bxf3+ {[%clk 00:04:37]} {[%emt 00:00:18]} 41. Kxf3
{[%clk 00:04:27]} {[%emt 00:00:13]} gxf5 {[%clk 00:05:05]} {[%emt 00:00:04]} 42.
Ke2 {[%clk 00:03:59]} {[%emt 00:00:56]} Kf6 {[%clk 00:05:16]} {[%emt 00:00:20]}
43. Nb2 {[%clk 00:03:40]} {[%emt 00:00:49]} Bc3 {[%clk 00:03:18]} {[%emt
00:02:28]} 44. Rd6+ {[%clk 00:03:36]} {[%emt 00:00:32]} Ke7 {[%clk 00:03:44]}
{[%emt 00:00:05]} 45. Nc4 {[%clk 00:03:59]} {[%emt 00:00:07]} Bd4 {[%clk
00:03:51]} {[%emt 00:00:24]} 46. f4 {[%clk 00:03:16]} {[%emt 00:01:13]} Rxc4
{[%clk 00:03:15]} {[%emt 00:01:06]} 0-1